[Event "Titled Tuesday Blitz December 20 Late 2022"]
[White "Van Foreest, Jorden"]
[Black "Donchenko, Alexander"]
[WhiteFideId "1039784"]
[BlackFideId "24603295"]
[WhiteElo "2663"]
[BlackElo "2581"]
[Result "0-1"]
[Round "04"]
[TimeControl "180+1"]
[Date "2022.12.20"]
[WhiteClock "0:01:29"]
[BlackClock "0:02:01"]

1. e4 {[%clk 0:03:00]}  c6 {[%clk 0:02:59]} 2. Nf3 {[%clk 0:02:59]}  d5 {[%clk 0:03:00]} 3. d3 {[%clk 0:02:59]}  g6 {[%clk 0:03:00]} 4. e5 {[%clk 0:02:57]}  f6 {[%clk 0:02:58]} 5. d4 {[%clk 0:02:57]}  fxe5 {[%clk 0:02:57]} 6. Nxe5 {[%clk 0:02:56]}  Nd7 {[%clk 0:02:56]} 7. f4 {[%clk 0:02:36]}  Nh6 {[%clk 0:02:50]} 8. Nd2 {[%clk 0:02:35]}  Bg7 {[%clk 0:02:49]} 9. Ndf3 {[%clk 0:02:35]}  O-O {[%clk 0:02:48]} 10. Bd3 {[%clk 0:02:35]}  Nxe5 {[%clk 0:02:43]} 11. Nxe5 {[%clk 0:02:35]}  c5 {[%clk 0:02:42]} 12. Be3 {[%clk 0:02:07]}  cxd4 {[%clk 0:02:32]} 13. Bxd4 {[%clk 0:02:07]}  Rxf4 {[%clk 0:02:31]} 14. c3 {[%clk 0:01:57]}  Qd6 {[%clk 0:02:10]} 15. Qe2 {[%clk 0:01:50]}  Nf5 {[%clk 0:02:03]} 16. Bxf5 {[%clk 0:01:35]}  Bxf5 {[%clk 0:02:04]} 17. Nf3 {[%clk 0:01:36]}  Bxd4 {[%clk 0:02:01]} 18. cxd4 {[%clk 0:01:29]}  Re4 {[%clk 0:02:01]} 0-1


[Site "https://www.chess.com"]

[Event "Titled Tuesday Blitz December 20 Late 2022"]
[White "Vega Gutierrez, Sabrina"]
[Black "Barria Zuniga, Daniel"]
[WhiteFideId "2219026"]
[BlackFideId "3400816"]
[WhiteElo "2261"]
[BlackElo "2414"]
[Result "1-0"]
[Round "04"]
[TimeControl "180+1"]
[Date "2022.12.21"]
[WhiteClock "0:00:57"]
[BlackClock "0:01:21"]

1. e4 {[%clk 0:02:35]}  e6 {[%clk 0:02:59]} 2. d4 {[%clk 0:02:30]}  d5 {[%clk 0:02:58]} 3. e5 {[%clk 0:02:31]}  c5 {[%clk 0:02:58]} 4. Qg4 {[%clk 0:02:31]}  cxd4 {[%clk 0:02:57]} 5. Bd3 {[%clk 0:02:31]}  Nc6 {[%clk 0:02:57]} 6. Nf3 {[%clk 0:02:31]}  f5 {[%clk 0:02:53]} 7. Qg3 {[%clk 0:02:26]}  Nh6 {[%clk 0:02:36]} 8. O-O {[%clk 0:02:09]}  Nf7 {[%clk 0:02:36]} 9. Re1 {[%clk 0:02:09]}  g6 {[%clk 0:02:35]} 10. h4 {[%clk 0:02:09]}  Be7 {[%clk 0:02:34]} 11. c3 {[%clk 0:02:05]}  dxc3 {[%clk 0:02:31]} 12. Nxc3 {[%clk 0:02:06]}  a6 {[%clk 0:02:31]} 13. Bf4 {[%clk 0:01:58]}  Rg8 {[%clk 0:02:02]} 14. Ng5 {[%clk 0:01:26]}  Nxg5 {[%clk 0:01:40]} 15. hxg5 {[%clk 0:01:26]}  h6 {[%clk 0:01:40]} 16. gxh6 {[%clk 0:01:22]}  g5 {[%clk 0:01:39]} 17. Bd2 {[%clk 0:01:18]}  Kf7 {[%clk 0:01:36]} 18. Qh3 {[%clk 0:01:09]}  Kg6 {[%clk 0:01:32]} 19. g4 {[%clk 0:01:03]}  Rh8 {[%clk 0:01:23]} 20. Qh5+ {[%clk 0:00:57]}  Kh7 {[%clk 0:01:21]} 21. Qf7+ {[%clk 0:00:57]}  Kxh6 {[%clk 0:01:21]} 22. Kg2 {[%clk 0:00:57]} 1-0


[Site "https://www.chess.com"]

[Event "Titled Tuesday Blitz December 20 Late 2022"]
[White "Young, Ryan"]
[Black "Alex_Sahakyan2006"]
[WhiteFideId "2049945"]
[WhiteElo "2432"]
[BlackElo "2627"]
[Result "1/2-1/2"]
[Round "04"]
[TimeControl "180+1"]
[Date "2022.12.21"]
[WhiteClock "0:00:12"]
[BlackClock "0:00:11"]

1. e4 {[%clk 0:03:00]}  d5 {[%clk 0:02:58]} 2. exd5 {[%clk 0:02:58]}  Qxd5 {[%clk 0:02:58]} 3. Nc3 {[%clk 0:02:58]}  Qd8 {[%clk 0:02:58]} 4. d4 {[%clk 0:02:56]}  Nf6 {[%clk 0:02:58]} 5. Nf3 {[%clk 0:02:56]}  Bf5 {[%clk 0:02:58]} 6. Bc4 {[%clk 0:02:48]}  e6 {[%clk 0:02:59]} 7. h3 {[%clk 0:02:48]}  c6 {[%clk 0:02:58]} 8. O-O {[%clk 0:02:47]}  Bd6 {[%clk 0:02:58]} 9. Qe2 {[%clk 0:02:45]}  Nbd7 {[%clk 0:02:58]} 10. Re1 {[%clk 0:02:44]}  O-O {[%clk 0:02:58]} 11. a4 {[%clk 0:02:42]}  h6 {[%clk 0:02:57]} 12. Bb3 {[%clk 0:02:40]}  Re8 {[%clk 0:02:56]} 13. Be3 {[%clk 0:02:21]}  Qc7 {[%clk 0:02:46]} 14. Rad1 {[%clk 0:02:16]}  Rad8 {[%clk 0:02:45]} 15. Bc1 {[%clk 0:02:04]}  Bh7 {[%clk 0:02:21]} 16. Be3 {[%clk 0:02:00]}  Nf8 {[%clk 0:02:20]} 17. Nh4 {[%clk 0:01:47]}  Ng6 {[%clk 0:02:20]} 18. Nxg6 {[%clk 0:01:47]}  Bxg6 {[%clk 0:02:21]} 19. Qf3 {[%clk 0:01:45]}  Bh5 {[%clk 0:02:12]} 20. g4 {[%clk 0:01:42]}  Bg6 {[%clk 0:02:13]} 21. Bxh6 {[%clk 0:01:41]}  Nxg4 {[%clk 0:01:59]} 22. hxg4 {[%clk 0:01:41]}  gxh6 {[%clk 0:01:59]} 23. Ne4 {[%clk 0:01:31]}  Be7 {[%clk 0:01:56]} 24. Nf6+ {[%clk 0:01:24]}  Bxf6 {[%clk 0:01:56]} 25. Qxf6 {[%clk 0:01:25]}  Qe7 {[%clk 0:01:54]} 26. Qf4 {[%clk 0:01:19]}  Qg5 {[%clk 0:01:54]} 27. Qxg5 {[%clk 0:01:16]}  hxg5 {[%clk 0:01:54]} 28. c3 {[%clk 0:01:16]}  Kg7 {[%clk 0:01:52]} 29. Kg2 {[%clk 0:01:16]}  Rh8 {[%clk 0:01:51]} 30. Rh1 {[%clk 0:01:16]}  a5 {[%clk 0:01:49]} 31. f3 {[%clk 0:01:14]}  Kf6 {[%clk 0:01:44]} 32. Rxh8 {[%clk 0:01:11]}  Rxh8 {[%clk 0:01:45]} 33. Re1 {[%clk 0:01:07]}  b6 {[%clk 0:01:40]} 34. Re5 {[%clk 0:01:03]}  Rd8 {[%clk 0:01:35]} 35. Re2 {[%clk 0:00:59]}  c5 {[%clk 0:01:35]} 36. dxc5 {[%clk 0:01:00]}  bxc5 {[%clk 0:01:34]} 37. Kf2 {[%clk 0:01:00]}  Rb8 {[%clk 0:01:30]} 38. Bc4 {[%clk 0:00:59]}  Rh8 {[%clk 0:01:27]} 39. Kg2 {[%clk 0:00:56]}  Ke7 {[%clk 0:01:14]} 40. Rd2 {[%clk 0:00:53]}  f5 {[%clk 0:01:10]} 41. Re2 {[%clk 0:00:49]}  fxg4 {[%clk 0:00:53]} 42. Rxe6+ {[%clk 0:00:47]}  Kf7 {[%clk 0:00:54]} 43. Ra6+ {[%clk 0:00:41]}  Kg7 {[%clk 0:00:53]} 44. fxg4 {[%clk 0:00:38]}  Be4+ {[%clk 0:00:46]} 45. Kg3 {[%clk 0:00:34]}  Rb8 {[%clk 0:00:37]} 46. Bb5 {[%clk 0:00:34]}  Rf8 {[%clk 0:00:34]} 47. Ra7+ {[%clk 0:00:32]}  Kh6 {[%clk 0:00:30]} 48. Be2 {[%clk 0:00:31]}  Rb8 {[%clk 0:00:28]} 49. Ra6+ {[%clk 0:00:26]}  Kg7 {[%clk 0:00:28]} 50. Rxa5 {[%clk 0:00:20]}  Rxb2 {[%clk 0:00:27]} 51. Ba6 {[%clk 0:00:18]}  Rg2+ {[%clk 0:00:17]} 52. Kh3 {[%clk 0:00:18]}  Ra2 {[%clk 0:00:16]} 53. Rxc5 {[%clk 0:00:16]}  Rxa4 {[%clk 0:00:16]} 54. Bb5 {[%clk 0:00:14]}  Ra1 {[%clk 0:00:10]} 55. Rxg5+ {[%clk 0:00:14]}  Kf6 {[%clk 0:00:11]} 56. Rc5 {[%clk 0:00:14]}  Rg1 {[%clk 0:00:10]} 57. g5+ {[%clk 0:00:13]}  Kg6 {[%clk 0:00:07]} 58. Be8+ {[%clk 0:00:12]}  Kg7 {[%clk 0:00:07]} 59. Rc7+ {[%clk 0:00:11]}  Kf8 {[%clk 0:00:07]} 60. Bc6 {[%clk 0:00:10]}  Bxc6 {[%clk 0:00:07]} 61. Rxc6 {[%clk 0:00:11]}  Rxg5 {[%clk 0:00:07]} 62. Kh4 {[%clk 0:00:12]}  Rd5 {[%clk 0:00:08]} 63. c4 {[%clk 0:00:13]}  Rd4+ {[%clk 0:00:07]} 64. Kg5 {[%clk 0:00:13]}  Ke7 {[%clk 0:00:08]} 65. Kf5 {[%clk 0:00:13]}  Rd6 {[%clk 0:00:08]} 66. Rc5 {[%clk 0:00:13]}  Kd7 {[%clk 0:00:09]} 67. Ke5 {[%clk 0:00:13]}  Rh6 {[%clk 0:00:09]} 68. Rb5 {[%clk 0:00:11]}  Kc6 {[%clk 0:00:09]} 69. Rb1 {[%clk 0:00:11]}  Rh4 {[%clk 0:00:09]} 70. Ra1 {[%clk 0:00:10]}  Rxc4 {[%clk 0:00:09]} 71. Ra6+ {[%clk 0:00:09]}  Kb5 {[%clk 0:00:09]} 72. Rg6 {[%clk 0:00:09]}  Rc1 {[%clk 0:00:10]} 73. Kf6 {[%clk 0:00:10]}  Kc6 {[%clk 0:00:10]} 74. Kg7+ {[%clk 0:00:11]}  Kd7 {[%clk 0:00:10]} 75. Kf6 {[%clk 0:00:11]}  Rf1+ {[%clk 0:00:10]} 76. Kg5 {[%clk 0:00:11]}  Ke7 {[%clk 0:00:09]} 77. Ra6 {[%clk 0:00:11]}  Rg1+ {[%clk 0:00:08]} 78. Kf4 {[%clk 0:00:11]}  Rf1+ {[%clk 0:00:09]} 79. Ke3 {[%clk 0:00:11]}  Re1+ {[%clk 0:00:08]} 80. Kf2 {[%clk 0:00:12]}  Rb1 {[%clk 0:00:08]} 81. Kg2 {[%clk 0:00:12]}  Rb2+ {[%clk 0:00:08]} 82. Kg3 {[%clk 0:00:12]}  Rb3+ {[%clk 0:00:09]} 83. Kg2 {[%clk 0:00:13]}  Rb4 {[%clk 0:00:09]} 84. Kg3 {[%clk 0:00:13]}  Rd4 {[%clk 0:00:09]} 85. Kg2 {[%clk 0:00:13]}  Rd6 {[%clk 0:00:10]} 86. Rxd6 {[%clk 0:00:12]}  Kxd6 {[%clk 0:00:11]} 1/2-1/2


[Site "https://www.chess.com"]

[Event "Titled Tuesday Blitz December 20 Late 2022"]
[White "Zhukov, Maksim"]
[Black "Polster, Christian"]
[WhiteFideId "34181790"]
[BlackFideId "12965081"]
[WhiteElo "1929"]
[BlackElo "2195"]
[Result "1/2-1/2"]
[Round "04"]
[TimeControl "180+1"]
[Date "2022.12.21"]
[WhiteClock "0:00:11"]
[BlackClock "0:00:14"]

1. Nf3 {[%clk 0:02:59]}  d5 {[%clk 0:02:59]} 2. g3 {[%clk 0:03:00]}  Nf6 {[%clk 0:02:59]} 3. Bg2 {[%clk 0:03:01]}  Bf5 {[%clk 0:03:00]} 4. O-O {[%clk 0:03:02]}  e6 {[%clk 0:03:00]} 5. c4 {[%clk 0:03:03]}  c6 {[%clk 0:02:57]} 6. d4 {[%clk 0:03:03]}  Nbd7 {[%clk 0:02:56]} 7. Nc3 {[%clk 0:03:04]}  dxc4 {[%clk 0:02:55]} 8. Nd2 {[%clk 0:03:02]}  Nb6 {[%clk 0:02:54]} 9. e4 {[%clk 0:03:02]}  Bg6 {[%clk 0:02:53]} 10. a4 {[%clk 0:02:23]}  Qxd4 {[%clk 0:02:38]} 11. a5 {[%clk 0:02:23]}  Nbd7 {[%clk 0:02:36]} 12. a6 {[%clk 0:02:23]}  b5 {[%clk 0:02:31]} 13. e5 {[%clk 0:02:16]}  Nd5 {[%clk 0:02:25]} 14. Nf3 {[%clk 0:01:35]}  Qxd1 {[%clk 0:02:20]} 15. Rxd1 {[%clk 0:01:36]}  Nc5 {[%clk 0:02:11]} 16. Nd4 {[%clk 0:01:36]}  Rc8 {[%clk 0:01:55]} 17. Nxd5 {[%clk 0:01:23]}  exd5 {[%clk 0:01:45]} 18. Bh3 {[%clk 0:01:23]}  Rc7 {[%clk 0:01:41]} 19. e6 {[%clk 0:01:23]}  Bd6 {[%clk 0:01:26]} 20. exf7+ {[%clk 0:01:13]}  Kxf7 {[%clk 0:01:27]} 21. Be3 {[%clk 0:01:06]}  Re8 {[%clk 0:01:22]} 22. Bg2 {[%clk 0:00:53]}  Be5 {[%clk 0:01:14]} 23. Nxc6 {[%clk 0:00:50]}  Nd3 {[%clk 0:00:42]} 24. Bxd5+ {[%clk 0:00:49]}  Kf6 {[%clk 0:00:35]} 25. Nxe5 {[%clk 0:00:49]}  Rxe5 {[%clk 0:00:32]} 26. Bd4 {[%clk 0:00:48]}  Kf5 {[%clk 0:00:21]} 27. Bxe5 {[%clk 0:00:47]}  Kxe5 {[%clk 0:00:22]} 28. Bb7 {[%clk 0:00:40]}  Kd4 {[%clk 0:00:19]} 29. Rd2 {[%clk 0:00:38]}  b4 {[%clk 0:00:18]} 30. Ra5 {[%clk 0:00:23]}  c3 {[%clk 0:00:15]} 31. Rd5+ {[%clk 0:00:22]}  Kc4 {[%clk 0:00:15]} 32. bxc3 {[%clk 0:00:21]}  bxc3 {[%clk 0:00:14]} 33. Rc2 {[%clk 0:00:17]}  Nb4 {[%clk 0:00:14]} 34. Rxc3+ {[%clk 0:00:11]}  Kxc3 {[%clk 0:00:14]} 35. Re5 {[%clk 0:00:10]}  Rd7 {[%clk 0:00:13]} 36. Kg2 {[%clk 0:00:09]}  Kd4 {[%clk 0:00:13]} 37. Re1 {[%clk 0:00:09]}  Kc5 {[%clk 0:00:13]} 38. h4 {[%clk 0:00:08]}  Kb5 {[%clk 0:00:13]} 39. h5 {[%clk 0:00:08]}  Bxh5 {[%clk 0:00:12]} 40. Re5+ {[%clk 0:00:09]}  Kb6 {[%clk 0:00:12]} 41. Rxh5 {[%clk 0:00:09]}  Nxa6 {[%clk 0:00:12]} 42. Bxa6 {[%clk 0:00:09]}  Kxa6 {[%clk 0:00:12]} 43. Rxh7 {[%clk 0:00:10]}  Kb5 {[%clk 0:00:12]} 44. Rh5+ {[%clk 0:00:10]}  Kb4 {[%clk 0:00:13]} 45. Rh4+ {[%clk 0:00:10]}  Kb5 {[%clk 0:00:13]} 46. Rh5+ {[%clk 0:00:10]}  Kb4 {[%clk 0:00:13]} 47. Rh4+ {[%clk 0:00:11]}  Kb5 {[%clk 0:00:14]} 48. Rh5+ {[%clk 0:00:11]} 1/2-1/2


[Site "https://www.chess.com"]

[Event "Titled Tuesday Blitz December 20 Late 2022"]
[White "reevecanada"]
[Black "Walentukiewicz, Michal"]
[BlackFideId "1126903"]
[WhiteElo "2288"]
[BlackElo "2028"]
[Result "1-0"]
[Round "04"]
[TimeControl "180+1"]
[Date "2022.12.21"]
[WhiteClock "0:02:15"]
[BlackClock "0:02:04"]

1. e4 {[%clk 0:03:00]}  g6 {[%clk 0:03:00]} 2. Nf3 {[%clk 0:02:58]}  Bg7 {[%clk 0:03:00]} 3. d4 {[%clk 0:02:58]}  c5 {[%clk 0:03:01]} 4. c3 {[%clk 0:02:58]}  cxd4 {[%clk 0:03:01]} 5. cxd4 {[%clk 0:02:58]}  Nf6 {[%clk 0:03:02]} 6. Nc3 {[%clk 0:02:58]}  d6 {[%clk 0:03:02]} 7. Bb5+ {[%clk 0:02:57]}  Bd7 {[%clk 0:03:02]} 8. Qe2 {[%clk 0:02:57]}  O-O {[%clk 0:03:02]} 9. O-O {[%clk 0:02:56]}  Bxb5 {[%clk 0:03:02]} 10. Nxb5 {[%clk 0:02:57]}  Nc6 {[%clk 0:03:02]} 11. Rd1 {[%clk 0:02:55]}  a6 {[%clk 0:03:02]} 12. Nc3 {[%clk 0:02:55]}  Rc8 {[%clk 0:03:03]} 13. e5 {[%clk 0:02:55]}  Nd7 {[%clk 0:03:02]} 14. e6 {[%clk 0:02:54]}  Nf6 {[%clk 0:03:01]} 15. exf7+ {[%clk 0:02:55]}  Rxf7 {[%clk 0:03:02]} 16. Ng5 {[%clk 0:02:55]}  Rf8 {[%clk 0:02:57]} 17. Ne6 {[%clk 0:02:55]}  Qd7 {[%clk 0:02:57]} 18. Nxf8 {[%clk 0:02:55]}  Rxf8 {[%clk 0:02:58]} 19. Bg5 {[%clk 0:02:55]}  Qf5 {[%clk 0:02:57]} 20. Bxf6 {[%clk 0:02:54]}  Bxf6 {[%clk 0:02:57]} 21. Qe3 {[%clk 0:02:51]}  Bg5 {[%clk 0:02:52]} 22. Qe4 {[%clk 0:02:49]}  Qxf2+ {[%clk 0:02:52]} 23. Kh1 {[%clk 0:02:49]}  Qxb2 {[%clk 0:02:49]} 24. Nd5 {[%clk 0:02:45]}  Bf6 {[%clk 0:02:37]} 25. Rab1 {[%clk 0:02:38]}  Qxa2 {[%clk 0:02:37]} 26. Rxb7 {[%clk 0:02:32]}  Qa4 {[%clk 0:02:37]} 27. Rf1 {[%clk 0:02:30]}  Qxd4 {[%clk 0:02:35]} 28. Qe6+ {[%clk 0:02:29]}  Kg7 {[%clk 0:02:27]} 29. Nxf6 {[%clk 0:02:25]}  Rxf6 {[%clk 0:02:27]} 30. Rxe7+ {[%clk 0:02:25]}  Kh6 {[%clk 0:02:14]} 31. Rxh7+ {[%clk 0:02:19]}  Kxh7 {[%clk 0:02:13]} 32. Qxf6 {[%clk 0:02:19]}  Qc4 {[%clk 0:02:05]} 33. Qf7+ {[%clk 0:02:14]}  Qxf7 {[%clk 0:02:05]} 34. Rxf7+ {[%clk 0:02:15]}  Kh6 {[%clk 0:02:06]} 35. Rf6 {[%clk 0:02:15]}  Ne5 {[%clk 0:02:05]} 36. Rxd6 {[%clk 0:02:15]}  Kg5 {[%clk 0:02:04]} 37. Rxa6 {[%clk 0:02:15]} 1-0


[Site "https://www.chess.com"]

[Event "Titled Tuesday Blitz December 20 Late 2022"]
[White "Alex_Sahakyan2006"]
[Black "reevecanada"]
[WhiteElo "2623"]
[BlackElo "2365"]
[Result "1-0"]
[Round "05"]
[TimeControl "180+1"]
[Date "2022.12.21"]
[WhiteClock "0:00:18"]
[BlackClock "0:00:23"]

1. c4 {[%clk 0:03:00]}  e5 {[%clk 0:02:55]} 2. Nc3 {[%clk 0:03:00]}  Nc6 {[%clk 0:02:53]} 3. Nf3 {[%clk 0:02:59]}  f5 {[%clk 0:02:53]} 4. d4 {[%clk 0:02:59]}  e4 {[%clk 0:02:53]} 5. d5 {[%clk 0:02:59]}  exf3 {[%clk 0:02:51]} 6. dxc6 {[%clk 0:02:59]}  fxg2 {[%clk 0:02:51]} 7. cxd7+ {[%clk 0:02:55]}  Qxd7 {[%clk 0:02:51]} 8. Qxd7+ {[%clk 0:02:55]}  Bxd7 {[%clk 0:02:50]} 9. Bxg2 {[%clk 0:02:55]}  O-O-O {[%clk 0:02:49]} 10. Bg5 {[%clk 0:02:48]}  Be7 {[%clk 0:02:48]} 11. Bxe7 {[%clk 0:02:49]}  Nxe7 {[%clk 0:02:49]} 12. O-O-O {[%clk 0:02:48]}  Bc6 {[%clk 0:02:49]} 13. Bxc6 {[%clk 0:02:49]}  Nxc6 {[%clk 0:02:49]} 14. Rxd8+ {[%clk 0:02:46]}  Rxd8 {[%clk 0:02:48]} 15. b3 {[%clk 0:02:46]}  Ne5 {[%clk 0:02:47]} 16. h3 {[%clk 0:02:40]}  c6 {[%clk 0:02:47]} 17. Rd1 {[%clk 0:02:32]}  Rxd1+ {[%clk 0:02:45]} 18. Nxd1 {[%clk 0:02:32]}  Kd7 {[%clk 0:02:45]} 19. Kd2 {[%clk 0:02:31]}  Kd6 {[%clk 0:02:43]} 20. Ke3 {[%clk 0:02:31]}  h6 {[%clk 0:02:43]} 21. Nc3 {[%clk 0:02:28]}  g5 {[%clk 0:02:43]} 22. f3 {[%clk 0:02:09]}  Ng6 {[%clk 0:02:39]} 23. Kf2 {[%clk 0:02:04]}  Ke5 {[%clk 0:02:38]} 24. e3 {[%clk 0:02:00]}  h5 {[%clk 0:02:34]} 25. Na4 {[%clk 0:01:51]}  b6 {[%clk 0:02:33]} 26. Nb2 {[%clk 0:01:50]}  c5 {[%clk 0:02:27]} 27. Nd3+ {[%clk 0:01:50]}  Ke6 {[%clk 0:02:27]} 28. f4 {[%clk 0:01:49]}  g4 {[%clk 0:02:14]} 29. hxg4 {[%clk 0:01:48]}  hxg4 {[%clk 0:02:15]} 30. Kg3 {[%clk 0:01:47]}  a6 {[%clk 0:02:14]} 31. Nf2 {[%clk 0:01:40]}  b5 {[%clk 0:02:13]} 32. e4 {[%clk 0:01:32]}  Ne7 {[%clk 0:02:11]} 33. e5 {[%clk 0:01:11]}  Nc6 {[%clk 0:01:31]} 34. Nd3 {[%clk 0:01:09]}  bxc4 {[%clk 0:01:27]} 35. bxc4 {[%clk 0:01:09]}  Nd4 {[%clk 0:01:23]} 36. Nxc5+ {[%clk 0:01:08]}  Ke7 {[%clk 0:01:23]} 37. Nd3 {[%clk 0:01:00]}  a5 {[%clk 0:01:22]} 38. a4 {[%clk 0:00:58]}  Nc6 {[%clk 0:01:20]} 39. Kh4 {[%clk 0:00:54]}  Nd4 {[%clk 0:01:14]} 40. c5 {[%clk 0:00:40]}  Ke6 {[%clk 0:01:12]} 41. Kg5 {[%clk 0:00:25]}  Nf3+ {[%clk 0:01:11]} 42. Kg6 {[%clk 0:00:23]}  g3 {[%clk 0:01:11]} 43. Nc1 {[%clk 0:00:19]}  g2 {[%clk 0:01:10]} 44. Ne2 {[%clk 0:00:19]}  g1=Q+ {[%clk 0:00:48]} 45. Nxg1 {[%clk 0:00:19]}  Nxg1 {[%clk 0:00:49]} 46. c6 {[%clk 0:00:19]}  Ne2 {[%clk 0:00:48]} 47. c7 {[%clk 0:00:19]}  Kd7 {[%clk 0:00:23]} 48. e6+ {[%clk 0:00:15]}  Kxc7 {[%clk 0:00:20]} 49. e7 {[%clk 0:00:16]}  Nxf4+ {[%clk 0:00:17]} 50. Kf7 {[%clk 0:00:16]}  Nd5 {[%clk 0:00:18]} 51. e8=Q {[%clk 0:00:16]}  Kd6 {[%clk 0:00:18]} 52. Qd8+ {[%clk 0:00:16]}  Kc5 {[%clk 0:00:19]} 53. Qxa5+ {[%clk 0:00:16]}  Kd4 {[%clk 0:00:20]} 54. Qa7+ {[%clk 0:00:14]}  Ke4 {[%clk 0:00:21]} 55. Qb7 {[%clk 0:00:14]}  f4 {[%clk 0:00:22]} 56. a5 {[%clk 0:00:14]}  f3 {[%clk 0:00:22]} 57. a6 {[%clk 0:00:14]}  f2 {[%clk 0:00:22]} 58. Qb1+ {[%clk 0:00:13]}  Kf3 {[%clk 0:00:21]} 59. a7 {[%clk 0:00:12]}  Nb6 {[%clk 0:00:18]} 60. Qxb6 {[%clk 0:00:11]}  f1=Q {[%clk 0:00:19]} 61. Qf6+ {[%clk 0:00:11]}  Ke2 {[%clk 0:00:20]} 62. Qxf1+ {[%clk 0:00:12]}  Kxf1 {[%clk 0:00:21]} 63. a8=Q {[%clk 0:00:13]}  Kg1 {[%clk 0:00:22]} 64. Qe4 {[%clk 0:00:13]}  Kh2 {[%clk 0:00:21]} 65. Kf6 {[%clk 0:00:14]}  Kg1 {[%clk 0:00:21]} 66. Kg5 {[%clk 0:00:15]}  Kh2 {[%clk 0:00:21]} 67. Qf3 {[%clk 0:00:15]}  Kg1 {[%clk 0:00:21]} 68. Qe2 {[%clk 0:00:16]}  Kh1 {[%clk 0:00:22]} 69. Kg4 {[%clk 0:00:16]}  Kg1 {[%clk 0:00:22]} 70. Kg3 {[%clk 0:00:17]}  Kh1 {[%clk 0:00:23]} 71. Qe1# {[%clk 0:00:18]} 1-0


[Site "https://www.chess.com"]

[Event "Titled Tuesday Blitz December 20 Late 2022"]
[White "Andreikin, Dmitry"]
[Black "Holt, Conrad"]
[WhiteFideId "4158814"]
[BlackFideId "2034387"]
[WhiteElo "2735"]
[BlackElo "2592"]
[Result "1/2-1/2"]
[Round "05"]
[TimeControl "180+1"]
[Date "2022.12.20"]
[WhiteClock "0:00:08"]
[BlackClock "0:00:08"]

1. Nf3 {[%clk 0:03:00]}  d5 {[%clk 0:02:59]} 2. g3 {[%clk 0:03:00]}  Bg4 {[%clk 0:02:58]} 3. Bg2 {[%clk 0:02:54]}  Nd7 {[%clk 0:02:58]} 4. c4 {[%clk 0:02:48]}  e6 {[%clk 0:02:56]} 5. cxd5 {[%clk 0:02:47]}  exd5 {[%clk 0:02:56]} 6. Qb3 {[%clk 0:02:45]}  Nc5 {[%clk 0:02:53]} 7. Qc2 {[%clk 0:02:43]}  Nf6 {[%clk 0:02:48]} 8. O-O {[%clk 0:02:43]}  Bd6 {[%clk 0:02:44]} 9. d3 {[%clk 0:02:39]}  O-O {[%clk 0:02:43]} 10. b4 {[%clk 0:02:30]}  Ne6 {[%clk 0:02:42]} 11. a3 {[%clk 0:02:19]}  Bxf3 {[%clk 0:02:23]} 12. exf3 {[%clk 0:02:20]}  Nd4 {[%clk 0:02:14]} 13. Qd1 {[%clk 0:02:18]}  a5 {[%clk 0:02:12]} 14. Bb2 {[%clk 0:02:13]}  Be5 {[%clk 0:02:05]} 15. Kh1 {[%clk 0:01:53]}  Nc6 {[%clk 0:01:59]} 16. d4 {[%clk 0:01:38]}  Bd6 {[%clk 0:01:59]} 17. b5 {[%clk 0:01:39]}  Na7 {[%clk 0:01:57]} 18. Nc3 {[%clk 0:01:37]}  Nc8 {[%clk 0:01:54]} 19. Na4 {[%clk 0:01:31]}  Qd7 {[%clk 0:01:49]} 20. Qb3 {[%clk 0:01:27]}  Qf5 {[%clk 0:01:26]} 21. Rae1 {[%clk 0:01:11]}  h5 {[%clk 0:01:20]} 22. Re5 {[%clk 0:00:50]}  Bxe5 {[%clk 0:01:16]} 23. dxe5 {[%clk 0:00:51]}  Nd7 {[%clk 0:01:15]} 24. Qxd5 {[%clk 0:00:50]}  Ncb6 {[%clk 0:01:09]} 25. Nxb6 {[%clk 0:00:49]}  Nxb6 {[%clk 0:01:09]} 26. Qxb7 {[%clk 0:00:50]}  Nc4 {[%clk 0:01:08]} 27. Bd4 {[%clk 0:00:41]}  Qd3 {[%clk 0:01:04]} 28. Bc5 {[%clk 0:00:38]}  Rfb8 {[%clk 0:00:57]} 29. Qxc7 {[%clk 0:00:29]}  Rc8 {[%clk 0:00:56]} 30. Qe7 {[%clk 0:00:28]}  Re8 {[%clk 0:00:48]} 31. Qh4 {[%clk 0:00:26]}  Nd2 {[%clk 0:00:39]} 32. Qd4 {[%clk 0:00:08]}  Qxd4 {[%clk 0:00:37]} 33. Bxd4 {[%clk 0:00:09]}  Nxf1 {[%clk 0:00:37]} 34. Bxf1 {[%clk 0:00:09]}  Rad8 {[%clk 0:00:37]} 35. Bb6 {[%clk 0:00:08]}  Rd1 {[%clk 0:00:32]} 36. Kg2 {[%clk 0:00:08]}  a4 {[%clk 0:00:22]} 37. Bc7 {[%clk 0:00:08]}  Rc1 {[%clk 0:00:07]} 38. b6 {[%clk 0:00:09]}  Rxc7 {[%clk 0:00:07]} 39. bxc7 {[%clk 0:00:09]}  Rc8 {[%clk 0:00:07]} 40. Bb5 {[%clk 0:00:10]}  Rxc7 {[%clk 0:00:07]} 41. Bxa4 {[%clk 0:00:11]}  Ra7 {[%clk 0:00:07]} 42. Bc6 {[%clk 0:00:07]}  Rxa3 {[%clk 0:00:07]} 43. f4 {[%clk 0:00:08]}  Kf8 {[%clk 0:00:06]} 44. h4 {[%clk 0:00:08]}  Ke7 {[%clk 0:00:07]} 45. Bf3 {[%clk 0:00:08]}  g6 {[%clk 0:00:06]} 46. Bd5 {[%clk 0:00:08]}  Ra5 {[%clk 0:00:06]} 47. Bc4 {[%clk 0:00:08]}  Ra4 {[%clk 0:00:06]} 48. Bd3 {[%clk 0:00:08]}  Ra3 {[%clk 0:00:06]} 49. Be2 {[%clk 0:00:09]}  Ra2 {[%clk 0:00:07]} 50. Bf3 {[%clk 0:00:09]}  Ra3 {[%clk 0:00:07]} 51. Be4 {[%clk 0:00:09]}  Ra4 {[%clk 0:00:08]} 52. Bf3 {[%clk 0:00:08]}  Ra3 {[%clk 0:00:08]} 1/2-1/2


[Site "https://www.chess.com"]